bitfinex-derivatives/quotes_ETHF0:USTF0_20250726
["timestamp","ask_amount","ask_price","bid_price","bid_amount"]
[1753570679618,2.96086,3749.2,3749.1,6.2432]
[1753570679922,28.04816,3749.2,3749.1,6.2432]
[1753570680319,27.5149,3749.2,3749.1,6.2432]
[1753570680519,28.04816,3749.2,3749.1,6.2432]
[1753570681918,26.48416,3749.2,3749.1,6.2432]
[1753570682428,26.48416,3749.2,3749.1,9.451]
[1753570684228,25.9509,3749.2,3749.1,9.451]
[1753570684824,21.316,3749.2,3749.1,9.98427]
[1753570687332,6.1989,3749.9,3749.8,6.77637]
[1753570687530,1.80701,3750.3,3750.1,4.0336]
[1753570687736,21.317,3750.2,3750.1,6.77633]
[1753570688032,21.9055,3750.2,3750.1,6.77633]
[1753570689236,27.5159,3750.2,3750.1,6.77633]
[1753570689733,28.04901,3750.2,3750.1,6.77633]
[1753570690630,27.5159,3750.2,3750.1,6.77633]
[1753570691035,28.04901,3750.2,3750.1,6.77633]
[1753570693241,28.04901,3750.2,3750.1,6.2432]
[1753570696142,28.04901,3750.2,3750.1,6.77633]
[1753570699049,28.04901,3750.2,3750.1,6.2432]
[1753570699648,28.04901,3750.2,3750.1,6.77633]
[1753570703043,28.04901,3750.2,3750.1,6.2432]
[1753570706743,28.04901,3750.2,3750.1,6.77633]
[1753570707145,28.04901,3750.2,3750.1,6.2432]
[1753570707749,28.04901,3750.2,3750.1,6.77633]
[1753570708149,28.04901,3750.2,3750.1,6.2432]
[1753570708349,27.5159,3750.2,3750.1,6.77633]
[1753570708648,28.04901,3750.2,3750.1,6.77633]
[1753570709050,2.405,3750.1,3749.9,1.5714]
[1753570709246,27.90324,3750.0,3749.9,1.5714]
[1753570709445,27.90324,3750.0,3749.9,4.0245]
[1753570709750,27.90324,3750.0,3749.9,6.0621]
[1753570710455,27.90324,3750.0,3749.9,6.59526]
[1753570710655,27.90324,3750.0,3749.9,9.80306]
[1753570710856,27.90324,3750.0,3749.9,6.59526]
[1753570711155,0.53312,3750.2,3750.1,0.53313]
[1753570711458,21.9175,3750.2,3750.1,5.74113]
[1753570711752,21.84311,3750.2,3750.1,6.59523]
[1753570712354,21.31,3750.2,3750.1,6.59523]
[1753570714454,21.9175,3750.2,3750.1,6.59523]
[1753570714759,27.90221,3750.2,3750.1,6.0621]
[1753570715051,27.90221,3750.2,3750.1,6.59523]
[1753570715452,27.90221,3750.2,3750.1,6.0621]
[1753570716159,2.93814,3750.0,3749.9,6.1857]
[1753570716358,27.90124,3750.0,3749.9,6.1857]
[1753570717256,27.90124,3750.0,3749.9,8.816]
[1753570717559,27.90124,3750.0,3749.9,5.3578]
[1753570718146,27.90124,3750.0,3749.9,7.7833]
[1753570718350,27.90124,3750.0,3749.9,8.816]
[1753570718551,27.90124,3750.0,3749.9,2.7539]
[1753570719357,27.90124,3750.0,3749.9,4.3253]
[1753570719557,27.90124,3750.0,3749.9,5.5088]
[1753570721661,27.90124,3750.0,3749.9,2.7549]
[1753570722664,27.90124,3750.0,3749.9,6.0621]
[1753570723163,27.90124,3750.0,3749.9,6.59526]
[1753570724564,27.3681,3750.0,3749.9,6.59526]
[1753570724760,27.90124,3750.0,3749.9,6.59526]
[1753570728164,27.90124,3750.0,3749.9,6.0621]
[1753570732068,27.90124,3750.0,3749.9,6.59526]
[1753570732869,27.3681,3750.0,3749.9,6.59526]
[1753570733664,27.90124,3750.0,3749.9,6.59526]
[1753570734268,9.2669,3750.5,3750.4,4.6153]
[1753570734469,31.10297,3750.5,3750.4,5.14839]
[1753570734670,31.10297,3750.5,3750.4,6.59519]
[1753570735269,27.89517,3750.5,3750.4,6.59519]
[1753570736262,27.3621,3750.5,3750.4,6.59519]
[1753570736971,27.89517,3750.5,3750.4,6.59519]
[1753570738670,27.89517,3750.5,3750.4,6.0621]
[1753570738868,6.50942,3750.2,3750.1,6.0405]
[1753570739171,27.81042,3750.2,3750.1,6.0405]
[1753570739771,27.81042,3750.2,3750.1,6.57363]
[1753570739971,27.81042,3750.2,3750.1,6.0405]
[1753570740774,27.81042,3750.2,3750.1,6.57363]
[1753570741666,5.04234,3750.0,3749.9,2.7056]
[1753570741872,27.81044,3750.0,3749.9,2.7056]
[1753570742469,27.81044,3750.0,3749.9,4.2248]
[1753570743470,27.81044,3750.0,3749.9,6.0405]
[1753570743870,26.34334,3750.0,3749.9,6.57366]
[1753570744075,21.301,3750.0,3749.9,6.57366]
[1753570744876,21.83414,3750.0,3749.9,6.0405]
[1753570745076,24.55334,3750.0,3749.9,6.0405]
[1753570745379,27.81044,3750.0,3749.9,6.0405]
[1753570750376,27.81044,3750.0,3749.9,6.57366]
[1753570750777,21.301,3750.0,3749.9,6.57366]
[1753570751076,0.53313,3750.1,3750.0,6.57363]
[1753570751266,21.298,3750.1,3750.0,9.78143]
[1753570751673,24.55033,3750.1,3750.0,9.78143]
[1753570751874,26.01743,3750.1,3750.0,9.78143]
[1753570752177,27.80743,3750.1,3750.0,9.78143]
[1753570753779,27.2743,3750.1,3750.0,9.78143]
[1753570754879,25.8072,3750.1,3750.0,9.78143]
[1753570756279,21.298,3750.1,3750.0,9.78143]
[1753570756485,24.0172,3750.1,3750.0,9.78143]
[1753570756782,25.4843,3750.1,3750.0,9.78143]
[1753570756978,27.2743,3750.1,3750.0,9.78143]
[1753570757582,27.80743,3750.1,3750.0,9.78143]
[1753570763091,27.80743,3750.1,3750.0,3.2078]
[1753570763395,0.53314,3750.0,3749.6,2.7539]
[1753570763593,1.6436,3750.0,3749.9,2.97674]
[1753570763892,22.9366,3750.0,3749.9,6.18454]
[1753570764093,21.293,3750.0,3749.9,6.18454]
[1753570764283,4.5404,3750.8,3750.4,2.4436]
[1753570764284,5.65637,3750.5,3750.4,2.4436]
[1753570764488,26.94937,3750.5,3750.4,6.0405]
[1753570764885,27.80237,3750.5,3750.4,6.0405]
[1753570765390,27.2693,3750.5,3750.4,6.57359]
[1753570765893,21.9101,3750.5,3750.4,6.57359]
[1753570766098,2.7192,3750.8,3750.7,6.57354]
[1753570766289,21.9091,3750.8,3750.7,9.78134]
[1753570766885,22.7621,3750.8,3750.7,9.78134]
[1753570767190,24.0112,3750.8,3750.7,9.78134]
[1753570767591,2.7192,3750.8,3750.7,9.78134]
[1753570767790,1.4671,3751.0,3750.9,6.53851]
[1753570767791,2.6297,3751.0,3750.9,6.53851]
[1753570767991,23.9217,3751.0,3750.9,6.53851]
[1753570768196,2.6297,3751.0,3750.9,6.53851]
[1753570768398,23.9217,3751.0,3750.9,6.53851]
[1753570768593,25.4178,3751.0,3750.9,6.53851]
[1753570769399,4.1258,3751.0,3750.9,6.53851]
[1753570769592,25.4158,3751.0,3750.9,6.53851]
[1753570769792,25.4158,3751.0,3750.9,6.75543273]
[1753570772691,26.2306,3751.0,3750.9,6.75543273]
[1753570772896,27.2619,3751.0,3750.9,6.75543273]
[1753570773800,5.9719,3751.6,3751.5,6.53843]
[1753570774002,27.2589,3751.6,3751.5,9.74623]
[1753570774694,27.98694022,3751.6,3751.5,9.74623]
[1753570774893,5.1406,3751.9,3751.8,2.96649]
[1753570775093,28.185969,3751.9,3751.8,6.53839]
[1753570776202,27.4579,3751.9,3751.8,6.53839]
[1753570777704,2.95591,3751.6,3751.5,3.2078]
[1753570777898,27.78781,3751.6,3751.5,3.2078]
[1753570779903,27.78781,3751.6,3751.5,7.407]
[1753570781910,27.78781,3751.6,3751.5,3.2078]
[1753570784304,2.95596,3751.3,3751.2,6.0055]
[1753570784499,27.78586,3751.3,3751.2,6.0055]
[1753570785504,24.633,3751.3,3751.2,6.53847]
[1753570785704,21.8579,3751.3,3751.2,6.53847]
[1753570786010,21.281,3751.3,3751.2,6.53847]
[1753570787612,21.281,3751.3,3751.2,9.74627]
[1753570788216,22.39086,3751.3,3751.2,9.74627]
[1753570788509,24.44366,3751.3,3751.2,9.74627]
[1753570788812,23.9107,3751.3,3751.2,9.74627]
[1753570789007,25.93976,3751.3,3751.2,9.74627]
[1753570789409,27.78586,3751.3,3751.2,9.2133]
[1753570789608,27.78586,3751.3,3751.2,9.74627]
[1753570791118,27.2529,3751.3,3751.2,9.74627]
[1753570791816,27.78586,3751.3,3751.2,9.74627]
[1753570796418,27.78586,3751.3,3751.2,6.0055]
[1753570797321,27.78586,3751.3,3751.2,6.53847]
[1753570798021,27.78586,3751.3,3751.2,6.0055]
[1753570798615,27.78586,3751.3,3751.2,6.53847]
[1753570800424,27.2529,3751.3,3751.2,6.53847]
[1753570800617,27.2529,3751.3,3751.2,9.74627]
[1753570800813,25.4108,3751.7,3751.6,5.9694]
[1753570801020,21.277,3751.7,3751.6,6.50231]
[1753570802021,23.9043,3751.7,3751.6,6.50231]
[1753570802419,24.6932,3751.7,3751.6,6.50231]
[1753570802621,27.2365,3751.7,3751.6,6.50231]
[1753570802821,27.2365,3751.7,3751.6,9.71011]
[1753570804223,27.7694,3751.7,3751.6,9.71011]
[1753570804522,27.7694,3751.7,3751.6,9.1772]
[1753570807728,27.7694,3751.7,3751.6,3.2078]
[1753570809921,5.38084,3751.4,3751.3,4.39375]
[1753570810116,27.76644,3751.4,3751.3,5.9694]
[1753570811126,27.76644,3751.4,3751.3,6.50236]
[1753570813426,1.91727,3751.2,3751.1,2.4161]
[1753570813625,27.76547,3751.2,3751.1,5.9694]
[1753570814127,6.49249,3751.1,3751.0,3.2078]
[1753570814327,2.95411,3750.9,3750.8,3.2589]
[1753570814529,27.76551,3750.9,3750.8,5.9694]
[1753570815030,27.76551,3750.9,3750.8,6.50243]
[1753570815229,27.76551,3750.9,3750.8,5.9694]
[1753570815830,27.76551,3750.9,3750.8,6.50243]
[1753570816224,27.76551,3750.9,3750.8,5.9694]
[1753570816427,27.2325,3750.9,3750.8,6.50243]
[1753570816732,27.76551,3750.9,3750.8,6.50243]
[1753570817223,27.76551,3750.9,3750.8,5.9694]
[1753570822446,2.95414,3750.7,3750.6,3.2078]
[1753570822741,27.76554,3750.7,3750.6,4.6525]
[1753570822943,27.76554,3750.7,3750.6,9.1772]
[1753570823238,4.1338,3751.1,3751.0,0.533]
[1753570823443,25.93979,3751.1,3751.0,5.9694]
[1753570824338,25.93979,3751.1,3751.0,6.5024]
[1753570824540,25.4068,3751.1,3751.0,6.5024]
[1753570824740,0.5954,3751.4,3751.3,6.50236]
[1753570824940,1.2368,3751.9,3751.8,1.0454]
[1753570825242,25.1371,3751.9,3751.8,2.94899]
[1753570825444,25.1371,3751.9,3751.8,6.50229]
[1753570826637,0.2,3751.9,3751.8,6.50229]
[1753570826942,7.70475336,3751.9,3751.8,6.50229]
[1753570827733,7.70475336,3751.9,3751.8,9.71009]
[1753570827938,9.26775336,3751.9,3751.8,9.71009]
[1753570828136,10.22105336,3751.9,3751.8,9.71009]
[1753570828839,2.5163,3751.9,3751.8,9.71009]
[1753570831950,22.834,3752.1,3752.0,4.01436]
[1753570832145,22.7967,3752.4,3752.3,4.01431]
[1753570832752,24.3597,3752.4,3752.3,4.01431]
[1753570833945,27.2423,3752.4,3752.3,4.01431]
[1753570842650,27.2363,3752.4,3752.3,4.01431]
[1753570843552,27.2363,3752.4,3752.3,4.01791]
[1753570845548,27.2363,3752.4,3752.3,3.4837]
[1753570845753,6.50612,3752.3,3752.2,3.2078]
[1753570846547,5.9733,3752.3,3752.2,3.74063]
[1753570846950,5.9733,3752.3,3752.2,5.53553]
[1753570847149,5.9733,3752.3,3752.2,7.22213]
[1753570848452,5.9733,3752.3,3752.2,7.22573]
[1753570848657,2.5163,3752.3,3752.2,7.22573]
[1753570849158,21.263,3752.4,3752.3,0.53282]
[1753570849357,21.263,3752.4,3752.3,4.01792]
[1753570850051,1.563,3752.5,3752.4,0.5328]
[1753570850357,22.823,3752.5,3752.4,4.0179]
[1753570853154,1.563,3752.5,3752.4,4.0179]
[1753570853349,23.6741,3752.7,3752.6,1.90927]
[1753570853550,23.6741,3752.7,3752.6,4.01787]
[1753570853957,24.6274,3752.7,3752.6,4.01787]
[1753570854156,25.2018,3752.7,3752.6,4.01787]
[1753570854855,26.3866,3752.7,3752.6,4.01787]
[1753570855248,26.3866,3752.7,3752.6,7.22567]
[1753570856360,5.1276,3752.7,3752.6,7.22567]
[1753570856555,1.563,3752.7,3752.6,7.22567]
[1753570857561,5.1478,3752.7,3752.6,7.22567]
[1753570857960,2.5163,3752.7,3752.6,7.22567]
[1753570858463,5.1681,3752.7,3752.6,7.22567]
[1753570861260,24.8213,3753.0,3752.9,4.03723]
[1753570861461,27.2493,3753.0,3752.9,4.03723]
[1753570863064,1.5082,3753.0,3752.9,4.03723]
[1753570863362,3.141,3753.0,3752.9,4.03723]
[1753570863566,5.9933,3753.0,3752.9,4.03723]
[1753570867066,6.52602,3753.0,3752.9,3.5045]
[1753570867270,5.9933,3752.9,3752.8,0.53274]
[1753570867862,4.3605,3752.8,3752.7,3.28666]
[1753570868068,5.9933,3752.8,3752.7,3.28666]
[1753570868270,5.9933,3752.8,3752.7,5.84746]
[1753570868574,5.9933,3752.8,3752.7,6.79116]
[1753570869273,6.52604,3752.8,3752.7,2.7539]
[1753570869468,6.52604,3752.8,3752.6,3.74057]
[1753570869664,2.428,3752.8,3752.6,3.74056]
[1753570869868,2.96074,3752.8,3752.6,3.74056]
[1753570870072,2.96076,3752.7,3752.6,3.2078]
[1753570870273,27.77806,3752.7,3752.6,3.2078]
[1753570872068,5.9933,3752.5,3752.4,4.0373]
[1753570875179,6.52609,3752.5,3752.4,3.5045]
[1753570875575,5.9933,3752.5,3752.4,3.5045]
[1753570875769,0.53281,3752.4,3752.2,2.1449]
[1753570875978,5.9933,3752.3,3752.2,3.5045]
[1753570876280,5.9933,3752.3,3752.2,4.03733]
[1753570877774,2.428,3753.0,3752.9,0.53272]
[1753570877980,23.679,3753.0,3752.9,4.03722]
[1753570878482,27.2443,3753.0,3752.9,4.03722]
[1753570878976,5.9933,3753.0,3752.9,4.03722]
[1753570879182,2.5072,3753.2,3753.1,4.0372]
[1753570879378,24.9399,3753.2,3753.1,7.245]
[1753570879578,25.7351,3753.2,3753.1,7.245]
[1753570879879,27.2433,3753.2,3753.1,7.245]
[1753570880069,27.2433,3753.2,3753.1,4.5674]
[1753570880270,0.5327,3753.1,3752.9,0.53272]
[1753570880474,5.9933,3753.0,3752.9,0.53272]
[1753570880680,3.3024,3752.8,3752.7,0.53275]
[1753570880880,5.9933,3752.8,3752.7,0.53275]
[1753570881277,5.9933,3752.8,3752.7,4.03725]
[1753570884972,5.1189,3752.6,3752.5,3.2078]
[1753570885173,27.2423,3752.6,3752.5,3.74059]
[1753570885881,27.2423,3752.6,3752.5,5.52799]
[1753570886276,27.2423,3752.6,3752.5,7.24509]
[1753570886475,23.7953,3752.6,3752.5,7.24509]
[1753570886681,27.2423,3752.6,3752.5,7.24509]
[1753570888482,5.9933,3752.6,3752.5,7.24509]
[1753570888786,27.2423,3752.6,3752.5,7.24509]
[1753570898192,27.2423,3752.6,3752.5,3.74059]
[1753570898596,27.2423,3752.6,3752.5,0.53279]
[1753570898829,27.2423,3752.6,3752.5,4.01539]
[1753570903599,27.2423,3752.6,3752.5,7.22319]
[1753570907299,24.39,3752.6,3752.5,7.22319]
[1753570907500,24.386,3752.6,3752.5,7.22319]
[1753570908304,25.2907,3752.6,3752.5,7.22319]
[1753570908903,26.4969,3752.6,3752.5,7.22319]
[1753570909402,27.2828,3752.6,3752.5,7.22319]
[1753570909902,27.2828,3752.6,3752.5,7.23199]
[1753570916602,1.5307,3753.2,3752.9,1.377]
[1753570916808,22.7727,3753.2,3753.1,7.2319]
[1753570918700,0.018,3753.3,3753.2,1.95529]
[1753570918912,0.018,3753.3,3753.2,4.07119]
[1753570919115,1e-05,3753.3,3753.2,9.07119]
[1753570919609,1e-05,3753.3,3753.2,4.07119]
[1753570919809,1e-05,3753.3,3753.2,9.07119]
[1753570920408,1e-05,3753.3,3753.2,4.07119]
[1753570920609,1e-05,3753.3,3753.2,9.07119]
[1753570922009,1.7518,3753.9,3753.8,4.0711]
[1753570922208,1e-05,3753.9,3753.8,7.2789]
[1753570923108,1e-05,3753.9,3753.8,12.2789]
[1753570924211,1.55181,3753.9,3753.8,12.2789]
[1753570924518,1.55181,3753.9,3753.8,7.2789]
[1753570927713,5.19091,3753.9,3753.8,7.2789]
[1753570929007,3.12271,3753.9,3753.8,7.2789]
[1753570929314,2.50611,3753.9,3753.8,7.2789]
[1753570935821,4.04921,3753.9,3753.8,7.2789]
[1753570936023,5.19091,3753.9,3753.8,7.2789]
[1753570943039,5.95421,3753.9,3753.8,7.2789]
[1753570943832,5.95421,3753.9,3753.8,3.7404]
[1753570949438,5.95421,3753.9,3753.8,3.2078]
[1753570949632,5.95421,3753.9,3753.8,3.7404]
[1753570952648,5.95421,3753.9,3753.4,3.2078]
[1753570952649,2.4074,3753.5,3753.4,3.2078]
[1753570952850,5.9921,3753.5,3753.4,3.2078]
[1753570953150,5.9921,3753.5,3753.4,3.74045]
[1753570957448,5.9921,3753.5,3753.4,4.87995]
[1753570957746,5.9921,3753.5,3753.4,6.41635]
[1753570958154,5.9921,3753.5,3753.4,4.35155]
[1753570958645,5.9921,3753.5,3752.9,4.67246213]
[1753570958646,3.595,3753.5,3753.1,0.53269]
[1753570958844,3.595,3753.2,3753.1,0.53269]
[1753570959046,5.9921,3753.2,3753.1,0.53269]
[1753570959246,3.5847,3753.1,3753.0,3.74051]
[1753570959551,6.5248,3753.1,3753.0,3.2078]
[1753570959751,2.4074,3752.8,3752.7,0.53276]
[1753570959946,2.94015,3752.8,3752.5,7.08121213]
[1753570960155,4.5045,3752.6,3752.5,7.08121213]
[1753570960342,6.52487,3752.6,3752.5,6.54843213]
[1753570960748,5.1264,3752.2,3752.1,1.6347]
[1753570960948,3.4215,3751.9,3751.8,5.31491231]
[1753570961354,3.4215,3751.9,3751.8,3.00468]
[1753570961547,3.4215,3751.9,3751.8,6.47138]
[1753570963757,4.576,3752.4,3752.3,6.47132]
[1753570963956,1.3682,3752.4,3752.3,6.47132]
[1753570964455,3.4215,3752.4,3752.3,6.47132]
[1753570965957,3.4215,3752.4,3752.3,5.54602]
[1753570966457,1.3682,3752.1,3752.0,3.00466]
[1753570966658,3.4215,3752.1,3752.0,3.00466]
[1753570966952,3.4215,3752.1,3752.0,6.47136]
[1753570976062,3.9541,3752.8,3752.7,0.53276]
[1753570976261,2.2339,3752.8,3752.7,6.47126]
[1753570976660,3.4215,3752.8,3752.7,6.47126]
[1753570977560,0.6219,3752.8,3752.7,6.47126]
[1753570977766,0.6219,3752.8,3752.7,9.67906]
[1753570978358,2.5861,3753.4,3753.3,5.50457]
[1753570978562,2.5861,3753.4,3753.3,6.39617]
[1753570978769,3.442,3753.4,3753.3,6.39617]
[1753570982161,3.442,3753.4,3752.8,1.33186]
[1753570982162,40.4075,3753.6,3753.5,4.39674]
[1753570982366,2.6559,3753.6,3753.5,6.39614]
[1753570983267,2.58241,3753.9,3753.8,2.862]
[1753570983473,2.58381,3753.9,3753.8,2.862]
[1753570983773,2.58611,3753.9,3753.8,2.862]
[1753570983968,3.44201,3753.9,3753.8,2.862]
[1753570984170,3.44201,3753.9,3753.8,6.3961]
[1753570985865,3.44201,3753.9,3753.8,5.5045]
[1753570986076,3.44201,3753.9,3753.8,4.3967]
[1753570986674,3.44201,3753.9,3753.8,5.5045]
[1753570986876,3.44201,3753.9,3753.8,6.3961]
[1753570989879,3.44201,3753.9,3753.8,2.0673]
[1753570990475,3.44201,3753.9,3753.8,5.0348]
[1753570990676,3.44201,3753.9,3753.8,6.3961]
[1753570995276,3.43831,3753.9,3753.8,6.3961]
[1753570996181,1e-05,3753.9,3753.8,6.3961]
[1753570996387,1e-05,3753.9,3753.8,2.862]
[1753570999985,2.65591,3753.9,3753.8,2.862]
[1753571000188,3.43831,3753.9,3753.8,6.3961]
[1753571001189,1e-05,3753.9,3753.8,2.862]
[1753571002294,1.46631,3753.9,3753.8,2.862]
[1753571003090,1.46631,3753.9,3753.8,6.3961]
[1753571004495,2.65591,3753.9,3753.8,6.3961]
[1753571004896,3.43831,3753.9,3753.8,6.3961]
[1753571005897,3.44201,3753.9,3753.8,2.0673]
[1753571006198,3.44201,3753.9,3753.8,3.0354]
[1753571006402,3.44201,3753.9,3753.8,6.3961]
[1753571008698,1e-05,3753.9,3753.8,2.862]
[1753571020307,1e-05,3753.9,3753.8,8.139]
[1753571020503,0.62661,3753.9,3753.8,8.139]
[1753571020810,0.62661,3753.9,3753.8,11.6652]
[1753571021813,1e-05,3753.9,3753.8,8.139]
[1753571022106,3.469,3753.7,3753.6,2.10923]
[1753571022311,3.469,3753.7,3753.6,6.39233]
[1753571025809,3.469,3753.7,3753.6,9.60013]
[1753571035721,3.469,3753.7,3753.6,6.39233]
[1753571042919,1e-05,3753.9,3753.6,5.8597]
[1753571043130,3.30071,3753.9,3753.8,6.2687]
[1753571044222,1e-05,3753.9,3753.8,2.8549]
[1753571045421,1e-05,3753.9,3753.8,24.0699]
[1753571049425,3.2078,3755.6,3754.6,2.3223]
[1753571049621,3.3007,3755.4,3755.3,0.9776]
[1753571049925,3.3007,3755.4,3755.3,5.52219]
[1753571050621,3.3007,3755.4,3755.3,3.54319]
[1753571050822,3.3007,3755.4,3755.3,4.58949]
[1753571051024,3.3007,3755.4,3755.3,5.52219]
[1753571051731,3.3007,3755.4,3755.3,6.26849]
[1753571052818,0.2,3755.9,3755.3,5.7361]
[1753571053023,3.3007,3755.6,3755.5,6.26846]
[1753571053426,3.5007,3755.9,3755.8,6.26842]
[1753571057525,0.2,3755.9,3755.8,6.26842]
[1753571061133,2.7949,3755.9,3755.8,27.47342]
[1753571062737,3.5007,3755.9,3755.8,6.26842]
[1753571063138,3.5007,3755.9,3755.8,23.17212]
[1753571063334,3.5007,3755.9,3755.8,0.53232]
[1753571063934,3.5007,3755.9,3755.7,9.01713]
[1753571064138,1.486,3755.9,3755.7,9.01713]
[1753571064340,3.3007,3755.8,3755.7,10.45193]
[1753571064841,3.3007,3755.8,3755.7,4.6426]
[1753571065137,3.3007,3755.7,3755.6,2.94475]
[1753571065329,3.3007,3755.7,3755.5,0.53236]
[1753571065537,3.3007,3755.7,3755.3,3.2078]
[1753571065538,3.3007,3755.4,3755.3,5.6202]
[1753571065840,3.3007,3755.4,3755.3,4.6426]
[1753571066139,3.3007,3754.8,3754.7,3.4587]
[1753571066327,3.3007,3754.8,3754.7,2.4124]
[1753571066534,3.3007,3754.8,3754.7,1.4348]
[1753571067734,1.0295,3754.7,3754.5,3.2078]
[1753571067936,3.2838,3753.9,3753.8,6.1544]
[1753571068631,3.2838,3753.9,3753.8,5.6218]
[1753571068837,3.2838,3753.9,3753.8,6.1544]
[1753571071438,3.2838,3753.9,3753.8,27.4154]
[1753571086456,0.6266,3754.3,3754.2,5.6218]
[1753571086654,1.9516,3754.8,3754.4,2.3157]
[1753571086848,2.5782,3754.8,3754.7,9.36206]
[1753571087158,3.2838,3754.8,3754.7,9.36206]
[1753571087972,3.2838,3754.8,3754.7,6.15426]
[1753571088165,3.2838,3754.8,3754.7,5.5825]
[1753571088864,3.2838,3754.8,3754.7,4.5835]
[1753571089269,3.2838,3754.8,3754.7,9.36207]
[1753571091167,3.2838,3754.8,3754.7,6.15427]
[1753571093069,3.2838,3754.8,3754.7,5.6218]
[1753571094664,3.81626,3754.8,3754.7,5.6218]
[1753571094865,3.2838,3754.8,3754.7,6.15427]
[1753571095066,3.2078,3755.4,3754.7,6.15427]
[1753571095067,2.3617,3754.9,3754.8,4.872]
[1753571095267,2.3617,3754.9,3754.8,5.6218]
[1753571095466,3.2838,3754.9,3754.8,6.15426]
[1753571098777,3.81625,3754.9,3754.8,4.8991]
[1753571098976,3.81625,3754.9,3754.8,5.5739]
[1753571099773,3.81625,3754.9,3754.7,0.53247]
[1753571099774,3.8147,3755.2,3755.1,5.5499]
[1753571099972,3.8147,3755.2,3755.1,6.08232]
[1753571100372,3.2823,3755.2,3755.1,6.08232]
[1753571100976,3.2823,3755.2,3755.1,5.5499]
[1753571101173,3.8147,3755.2,3755.1,5.5499]
[1753571101374,3.8147,3755.2,3755.1,1.3517]
[1753571103780,3.2823,3755.2,3755.1,3.98052]
[1753571103981,3.2823,3755.2,3755.1,4.83292]
[1753571104376,3.2823,3755.2,3755.1,5.40752]
[1753571104575,3.2823,3755.2,3755.1,6.08232]
[1753571105279,3.8147,3755.2,3755.1,6.08232]
[1753571105479,3.2823,3755.2,3755.1,6.08232]
[1753571106080,3.8147,3755.2,3755.1,6.08232]
[1753571106280,3.2823,3755.2,3755.1,6.08232]
[1753571106481,3.8147,3755.2,3755.1,6.08232]
[1753571107279,3.8147,3755.2,3755.1,5.5499]
[1753571112581,3.8147,3755.2,3755.1,4.6975]
[1753571113183,3.2823,3755.2,3755.1,6.08232]
[1753571113389,3.2823,3755.2,3755.1,5.5499]
[1753571113390,3.8147,3755.2,3755.1,5.5499]
[1753571114792,3.8147,3755.2,3755.1,1.3517]
[1753571116084,3.8147,3755.2,3755.1,2.3392]
[1753571116392,3.8147,3755.2,3755.1,3.4481]
[1753571117090,3.8147,3755.2,3755.1,4.3005]
[1753571117485,3.8147,3755.2,3755.1,4.8751]
[1753571117893,3.8147,3755.2,3755.1,5.5499]
[1753571120901,3.8147,3755.2,3755.1,6.08232]
[1753571121103,3.2823,3755.2,3755.1,6.08232]
[1753571121302,3.8147,3755.2,3755.1,6.08232]
[1753571121901,3.8147,3755.2,3755.1,5.5499]
[1753571122102,3.8147,3755.2,3755.1,6.08232]
[1753571122503,3.8147,3755.2,3755.1,5.5499]
[1753571122802,3.8147,3755.2,3755.1,6.08232]
[1753571123802,3.8147,3755.2,3755.1,5.5499]
[1753571124098,3.8147,3755.2,3755.1,6.08232]
[1753571124303,3.8147,3755.2,3755.1,5.5499]
[1753571125300,3.8147,3755.2,3755.1,6.08232]
[1753571126504,1.9634,3755.8,3755.3,5.5499]
[1753571126703,3.09294,3755.7,3755.6,6.08225]
[1753571127003,3.81464,3755.7,3755.6,6.08225]
[1753571127201,3.81464,3755.7,3755.6,5.5499]
[1753571128905,1.81579,3755.3,3755.2,1.3373]
[1753571129113,6.90769,3755.3,3755.2,1.3373]
[1753571131919,3.69989,3755.3,3755.2,1.3373]
[1753571132516,6.90769,3755.3,3755.2,1.3373]
[1753571133219,3.69989,3755.3,3755.2,3.9203]
[1753571133415,3.69989,3755.3,3755.2,5.4977]
[1753571134722,3.1675,3755.0,3754.9,4.1604]
[1753571134910,3.69993,3755.0,3754.9,4.1604]
[1753571135316,3.69993,3755.0,3754.9,5.4977]
[1753571140120,3.1675,3755.0,3754.9,5.4977]
[1753571147018,3.1675,3755.0,3754.9,6.03015]
[1753571147224,3.2078,3755.1,3755.0,6.03013]
[1753571149625,3.2078,3755.1,3755.0,5.4977]
[1753571149924,3.2078,3755.1,3755.0,6.03013]
[1753571150533,0.8566,3755.3,3755.0,5.4977]
[1753571150829,2.4664,3755.2,3755.1,5.4977]
[1753571151030,3.1675,3755.2,3755.1,5.4977]
[1753571152534,3.1675,3755.2,3755.1,6.03012]
[1753571152733,3.1675,3755.2,3755.1,5.4977]
[1753571153431,3.1675,3755.2,3755.1,6.03012]
[1753571153932,3.1675,3755.2,3755.1,5.4977]
[1753571154126,3.1675,3755.2,3755.1,6.03012]
[1753571157035,3.1675,3755.2,3755.1,5.4977]
[1753571157837,3.1675,3755.2,3755.1,6.03012]
[1753571158035,3.1675,3755.2,3755.1,5.4977]
[1753571159135,3.1675,3755.2,3755.1,6.03012]
[1753571159731,3.1675,3755.2,3755.1,5.4977]
[1753571161336,3.1675,3755.2,3755.1,6.03012]
[1753571161936,3.1675,3755.2,3755.1,5.4977]
[1753571165038,3.1675,3755.2,3755.1,6.03012]
[1753571166134,0.6003,3755.4,3755.3,2.2152]